[Event "7th Sharjah Challengers 2024"]
[Site "Sharjah"]
[Date "2024.05.16"]
[Round "3.1"]
[White "Piliposyan, Robert"]
[Black "Delgado Ramirez, Neuris"]
[Result "1/2-1/2"]
[ECO "E11"]
[WhiteElo "2367"]
[BlackElo "2489"]
[Annotator "TA"]
[PlyCount "75"]
[EventDate "2024.05.13"]
[EventType "swiss"]
[EventCountry "UAE"]
[SourceTitle "playchess.com"]
[Source "ChessBase"]
[SourceQuality "1"]
[TimeControl "5400+30"]

{[%evp 19,75,32,33,25,33,10,18,11,25,25,17,6,18,7,20,6,10,0,20,0,6,0,8,12,30,0,0,0,0,-7,0,0,0,0,0,-6,0,0,0,0,0,0,0,-1045,0,0,0,0,0,-927,0,0,38,-654,735,-401,-394,-371]} 1. d4 {[%emt 0:00:12]} Nf6 {[%emt 0:01:50]} 2. c4 {[%emt 0:00:47]} Nc6 {[%emt 0:02:48]} 3. Nf3 {[%emt 0:06:20]} e6 {[%emt 0:01:05]} 4. g3 {[%emt 0:07:12]} Bb4+ {[%emt 0:03:46]} 5. Bd2 {[%emt 0:06:16]} Qe7 {[%emt 0:01:23]} 6. Nc3 {[%emt 0:00:22]} Bxc3 {[%emt 0:01:17]} 7. Bxc3 {[%emt 0:00:12]} Ne4 {[%emt 0:00:11]} 8. Qc2 {[%emt 0:05:10]} Nxc3 {[%emt 0:05:44]} 9. Qxc3 {[%emt 0:00:54]} Qb4 {[%emt 0:04:09]} 10. Qxb4 {[%emt 0:07:11]} Nxb4 {[%emt 0:00:57]} 11. Kd2 {[%emt 0:00:16] Repels Nc2} b6 {[%emt 0:05:55]} 12. a3 {[%emt 0:04:16]} Nc6 {[%emt 0:00:27]} 13. Bg2 {[%emt 0:16:40] The position is equal.} Bb7 {[%emt 0:00:25][%cal Oc6d4]} 14. Kc3 {[%emt 0:00:37]} Ne7 {[%emt 0:01:06]} 15. Ne1 {[%emt 0:02:58][%cal Bf3e1,Be1g2,Bg2f4][%mdl 32]} Bxg2 {[%emt 0:00:56]} 16. Nxg2 {[%emt 0:00:39]} d6 {[%emt 0:00:20]} 17. Rhd1 {[%emt 0:02:32]} Kd7 {[%emt 0:01:31]} 18. Nf4 {[%emt 0:02:40]} g6 {[%emt 0:02:02]} 19. b3 {[%emt 0:02:29]} a5 {[%emt 0:00:51]} 20. e4 {[%emt 0:04:57]} Rhb8 {[%emt 0:01:31]} 21. a4 {[%emt 0:06:31]} Rd8 {[%emt 0:02:54]} 22. Rd3 {[%emt 0:02:01]} Nc6 {[%emt 0:00:29]} 23. Ne2 {[%emt 0:03:39]} e5 {[%emt 1:00:23]} 24. f4 {[%emt 0:03:47]} Nb4 {[%emt 0:00:00]} 25. Rd2 {[%emt 0:00:48]} exd4+ {[%emt 0:00:00]} 26. Nxd4 {[%emt 0:00:13]} Re8 {[%emt 0:00:00]} 27. Re1 {[%emt 0:01:04]} Re7 {[%emt 0:00:00]} 28. e5 {[%emt 0:01:51]} Ke8 {[%emt 0:00:00]} 29. Rde2 {[%emt 0:02:30] exd6 is the strong threat.} dxe5 {[%emt 0:00:00]} 30. Rxe5 {[%emt 0:00:03]} Rxe5 {[%emt 0:00:00]} 31. Re2 {[%emt 0:10:53][%mdl 8192] [#]} (31. fxe5 Rd8 32. Re2 c5 $17) (31. Rxe5+ $11 Kd7 32. Nb5) 31... Re4 $2 32. Rxe4+ $11 {[%emt 0:00:00][%mdl 4096] Endgame. KRN-KRN} Kd7 {[%emt 0:00:00]} 33. Re5 {[%emt 0:00:00]} f6 {[%emt 0:00:00]} 34. c5 $2 {[%emt 0:00:00][%mdl 8192]} c6 $2 {[%emt 0:00:00]} (34... fxe5 $19 35. fxe5 bxc5 36. e6+ Ke7) 35. Re4 {[%emt 0:00:00]} Rc8 {[%emt 0:00:00] [#]} 36. Nb5 $2 {[%emt 0:00:00][%mdl 8192] [#]} Rc7 $4 {[%emt 0:06:30][%mdl 8192] [#]} 37. Kd4 $4 {[%emt 0:00:00][%mdl 8192]} bxc5+ $19 {[%emt 0:00:00]} 38. Kxc5 {[%emt 0:00:00][%mdl 32768] Weighted Error Value: White=0.96/Black=0.48.  Loses game:     	White=3     	---        Missed win:     	White=1     	Black=3      Inaccurate:     	White=1     	---        OK:         	White=7     	Black=12     Best:        	White=1     	---       . An unexpected result.} 1/2-1/2

[Event "7th Sharjah Challengers 2024"]
[Site "Sharjah"]
[Date "2024.05.16"]
[Round "3.2"]
[White "Lashkin, Jegor"]
[Black "Anwesh, Upadhyaya"]
[Result "1/2-1/2"]
[ECO "D94"]
[WhiteElo "2449"]
[BlackElo "2345"]
[Annotator "TA"]
[PlyCount "87"]
[EventDate "2024.05.13"]
[EventType "swiss"]
[EventCountry "UAE"]
[SourceTitle "playchess.com"]
[Source "ChessBase"]
[SourceQuality "1"]
[TimeControl "5400+30"]

{[%evp 14,87,10,14,15,15,17,10,13,-32,-29,-25,39,53,55,45,60,45,72,58,53,65,60,64,74,70,68,74,62,70,65,59,75,0,68,66,76,8,7,0,8,0,47,62,62,0,37,34,43,0,0,0,0,0,0,0,0,0,0,0,0,0,0,0,0,0,0,0,0,0,0,0,0,0,0,0]} 1. d4 {[%emt 0:00:03]} d5 {[%emt 0:05:26]} 2. c4 {[%emt 0:00:14]} c6 {[%emt 0:00:06]} 3. Nc3 {[%emt 0:00:17]} Nf6 {[%emt 0:00:08]} 4. e3 {[%emt 0:00:10]} g6 {[%emt 0:00:35]} 5. Nf3 {[%emt 0:01:17]} Bg7 {[%emt 0:00:11]} 6. h3 {[%emt 0:01:19]} O-O {[%emt 0:00:08]} 7. Be2 {[%emt 0:02:33][%cal Bf1e2,Be2c4,Bc4d3][%mdl 32]} dxc4 {[%emt 0:03:08]} 8. Bxc4 {[%emt 0:00:36]} b5 {[%emt 0:00:06]} 9. Bd3 {[%emt 0:04:59]} Bb7 {[%emt 0:00:12]} 10. O-O {[%emt 0:00:56]} Nbd7 {[%emt 0:00:26]} 11. e4 {[%emt 0:12:00]} c5 {[%emt 0:05:48]} 12. e5 {[%emt 0:12:11]} Nh5 {[%emt 0:00:12]} (12... Bxf3 $11 13. gxf3 (13. Qxf3 Nh5 $11) 13... Nh5) 13. Be4 $1 $14 {[%emt 0:06:09]} (13. Bxb5 Bxf3 14. Qxf3 cxd4 15. Bxd7 Qxd7 $17) 13... Bxe4 {[%emt 0:11:29]} 14. Nxe4 {[%emt 0:00:02]} cxd4 $1 {[%emt 0:03:54]} 15. g4 {[%emt 0:02:12]} (15. Qxd4 Nxe5 16. Qe3 Qb6 17. Nxe5 Bxe5 $17) 15... f5 $1 {[%emt 0:09:00]} 16. Neg5 {[%emt 0:05:41]} fxg4 {[%emt 0:01:37]} 17. hxg4 {[%emt 0:03:40]} (17. Nxd4 Nxe5 18. Qb3+ Kh8 $11) 17... Nf4 {[%emt 0:00:27]} 18. Bxf4 $1 {[%emt 0:02:20]} (18. Qxd4 $2 Ne2+ 19. Kg2 Nxd4 $19) 18... Rxf4 {[%emt 0:00:19]} 19. Qb3+ {[%emt 0:00:17]} (19. Nxd4 $2 Nc5 (19... Nxe5 20. Nge6 $11) (19... Bxe5 $2 20. Nde6 $18) 20. Nge6 Nxe6 21. Nxe6 Qxd1 22. Rfxd1 Rxg4+ 23. Kf1 Bxe5 $19) 19... Kh8 {[%emt 0:02:17]} 20. Nf7+ {[%emt 0:01:02]} (20. Qxb5 $2 Rb8 (20... Rxg4+ 21. Kh1 $17) 21. Qd5 Nxe5 (21... Rxb2 $2 22. e6 $18) (21... Rxg4+ 22. Kh1 $11) 22. Qxd8+ Rxd8 $19) 20... Rxf7 {[%emt 0:00:45]} 21. Qxf7 {[%emt 0:00:09]} Nxe5 {[%emt 0:01:31]} 22. Nxe5 {[%emt 0:00:22]} Bxe5 {[%emt 0:00:07]} 23. f4 {[%emt 0:13:09]} ({Better is} 23. Kg2 $16 {Strongly threatening Rh1.} Qf8 24. Qxf8+ Rxf8 25. Rfd1) 23... Bf6 {[%emt 0:14:20]} (23... Qd7 $11 24. fxe5 Qxg4+ 25. Kf2 Qh4+ 26. Ke2 Qe4+ 27. Kf2 (27. Kd2 Qe3+ 28. Kd1 Qd3+ 29. Ke1 Qe3+ 30. Kd1 Qd3+ 31. Ke1 Qe3+ 32. Kd1 $11) 27... Qe3+ 28. Kg2 Qg5+ 29. Kf3 Qe3+ 30. Kg4 h5+ 31. Kh4 g5+ 32. Kxh5 Qh3+ (32... Qxe5 33. Rh1) 33. Kg6 (33. Kxg5 $2 Rg8+ $17) 33... Rg8+ 34. Qxg8+ Kxg8) 24. g5 {[%emt 0:07:55][%mdl 1024] White has compensation.} Bg7 {[%emt 0:06:46]} 25. Qe6 {[%emt 0:09:27] White has more active pieces.} (25. Rae1 $16 e5 26. Kg2) 25... d3 $132 {[%emt 0:05:23][%cal Oa8c8][%mdl 2048] Black is fighting back} 26. Kg2 {[%emt 0:01:34]} Rc8 {[%emt 0:12:41]} 27. Rac1 {[%emt 0:06:52]} Rc2+ {[%emt 0:09:10]} (27... Rxc1 $1 $11 {is more appropriate.} 28. Rxc1 d2 (28... Bxb2 $2 29. Rc8 $18)) 28. Rxc2 $1 $14 {[%emt 0:01:28]} dxc2 {[%emt 0:00:04][%mdl 4096] Endgame. KQR-KQB} 29. Qe4 {[%emt 0:00:21]} (29. Qc6 $1 $14) 29... e5 {[%emt 0:00:50]} (29... Bxb2 30. Qxc2 Bd4 31. Qe4 $16) ({Wrong is} 29... Qd2+ $2 30. Rf2 h6 (30... Qxf2+ $2 31. Kxf2 h6 32. Qxc2 $18) 31. Rxd2 $18) (29... Qc8 $5 30. Rc1 $8 Qg4+ (30... Bxb2 31. Rxc2 Qg4+ 32. Kf2 $14) 31. Kf2 h6 $17) 30. Qxc2 {[%emt 0:00:46]} exf4 {[%emt 0:00:19]} 31. Qc5 {[%emt 0:01:20]} Bd4 $1 {[%emt 0:03:31] The position is equal.} 32. Qxb5 {[%emt 0:01:30]} a6 $1 {[%emt 0:01:05]} 33. Qd3 {[%emt 0:01:08]} Qxg5+ {[%emt 0:00:18]} 34. Kf3 $1 {[%emt 0:01:05]} Bxb2 {[%emt 0:02:05]} 35. Qe4 {[%emt 0:01:12] Chess con chili.} Be5 {[%emt 0:03:01]} 36. Qa8+ {[%emt 0:01:15]} Kg7 {[%emt 0:00:01]} 37. Qb7+ {[%emt 0:00:43]} Kg8 {[%emt 0:00:23] [#] Threatens to win with ...Qg3+.} 38. Qc8+ {[%emt 0:00:28]} Kg7 {[%emt 0:00:07] aiming for ...Qg3+.} 39. Qd7+ {[%emt 0:00:13]} Kg8 {[%emt 0:00:11]} 40. Qc8+ {[%emt 0:00:45]} Kg7 {[%emt 0:00:03] And now ...Qg3+ would win.} 41. Qd7+ {[%emt 0:00:19]} Kg8 {[%emt 0:00:05]} 42. Qe8+ {[%emt 0:00:41]} Kg7 {[%emt 0:00:03]} 43. Qd7+ {[%emt 0:00:17]} Kg8 {[%emt 0:03:42]} 44. Ke4 {[%emt 0:00:30] Weighted Error Value: White=0.09 (flawless) /Black=0.10 (very precise) .  Mistake:       	White=3     	Black=3      Inaccurate:     	White=2     	Black=1      OK:         	White=14    	Black=5      Best:        	White=3     	Black=7      Strong:       	White=4     	Black=4} 1/2-1/2

[Event "7th Sharjah Challengers 2024"]
[Site "Sharjah"]
[Date "2024.05.16"]
[Round "3.3"]
[White "Dhruva Thota"]
[Black "Divya Deshmukh"]
[Result "1/2-1/2"]
[ECO "C67"]
[WhiteElo "2351"]
[BlackElo "2443"]
[Annotator "TA"]
[PlyCount "51"]
[EventDate "2024.05.13"]
[EventType "swiss"]
[EventCountry "UAE"]
[SourceTitle "playchess.com"]
[Source "ChessBase"]
[SourceQuality "1"]
[TimeControl "5400+30"]

{[%evp 16,51,21,16,22,2,10,-1,3,0,5,0,12,-7,-8,-13,-6,-11,-8,-6,-6,-11,-7,-14,-2,-8,-9,-2,-2,-7,0,0,0,-2,-11,0,0,-9]} 1. e4 {[%emt 0:00:08]} e5 {[%emt 0:00:09]} 2. Nf3 {[%emt 0:00:18]} Nc6 {[%emt 0:00:07]} 3. Bb5 {[%emt 0:00:44]} Nf6 {[%emt 0:00:33]} 4. O-O {[%emt 0:00:18][%cal Bh1f1,Bf1e1,Be1e5][%mdl 32]} Nxe4 {[%emt 0:00:13]} 5. Re1 {[%emt 0:00:16]} Nd6 {[%emt 0:00:07]} 6. Nxe5 {[%emt 0:00:08]} Nxe5 {[%emt 0:00:40]} 7. Rxe5+ {[%emt 0:00:10]} Be7 {[%emt 0:00:03]} 8. Bf1 {[%emt 0:00:11]} O-O {[%emt 0:00:04]} 9. d4 {[%emt 0:00:20] The position is equal.} Ne8 {[%emt 0:00:16]} 10. Re1 {[%emt 0:06:44]} d5 {[%emt 0:01:12]} 11. Bf4 {[%emt 0:01:52]} Bd6 {[%emt 0:04:13]} 12. Qf3 {[%emt 0:07:05]} Bxf4 {[%emt 0:13:07]} 13. Qxf4 {[%emt 0:00:06]} Qd6 {[%emt 0:01:28]} 14. Qxd6 {[%emt 0:06:53]} Nxd6 {[%emt 0:01:16]} 15. Bd3 {[%emt 0:00:41]} Bf5 {[%emt 0:10:00]} 16. Bxf5 {[%emt 0:02:05]} Nxf5 {[%emt 0:00:23]} 17. c3 {[%emt 0:00:08]} f6 {[%emt 0:03:17]} 18. Nd2 {[%emt 0:07:13]} Kf7 {[%emt 0:01:06]} 19. Re2 {[%emt 0:04:48]} Rfd8 {[%emt 0:02:06]} 20. a4 {[%emt 0:05:49]} a5 {[%emt 0:01:39]} 21. Rae1 {[%emt 0:06:23] Threatens to win with g4.} h5 {[%emt 0:00:23]} 22. g3 {[%emt 0:02:26]} Rd7 {[%emt 0:04:55]} 23. h4 {[%emt 0:05:49]} Re7 {[%emt 0:06:28]} 24. Kg2 {[%emt 0:04:56]} Rxe2 {[%emt 0:01:36]} 25. Rxe2 {[%emt 0:00:03]} Nd6 {[%emt 0:00:19]} 26. Nb3 {[%emt 0:02:23] Not much happened in this game.   Weighted Error Value: White=0.05 (flawless) /Black=0.03 (flawless) .  OK:         	White=4     	Black=5} 1/2-1/2

[Event "7th Sharjah Challengers 2024"]
[Site "Sharjah"]
[Date "2024.05.16"]
[Round "3.4"]
[White "Farahat, Ali"]
[Black "Garifullina, Leya"]
[Result "1/2-1/2"]
[ECO "B14"]
[WhiteElo "2327"]
[BlackElo "2431"]
[Annotator "TA"]
[PlyCount "52"]
[EventDate "2024.05.13"]
[EventType "swiss"]
[EventCountry "UAE"]
[SourceTitle "playchess.com"]
[Source "ChessBase"]
[SourceQuality "1"]
[TimeControl "5400+30"]

{[%evp 14,52,-4,4,0,0,0,-9,-10,-19,-18,-13,-2,-15,0,0,0,-20,-21,-40,0,0,0,0,0,0,0,0,0,0,0,0,29,29,26,27,23,22,27,27,37]} 1. d4 {[%emt 0:00:06]} Nf6 {[%emt 0:00:28]} 2. Nf3 {[%emt 0:00:13]} d5 {[%emt 0:00:06]} 3. e3 {[%emt 0:00:15]} c5 {[%emt 0:00:06]} 4. c4 {[%emt 0:00:31]} cxd4 {[%emt 0:00:06]} 5. exd4 {[%emt 0:00:22]} g6 {[%emt 0:00:05]} 6. Nc3 {[%emt 0:03:11]} Bg7 {[%emt 0:00:23]} 7. Qb3 {[%emt 0:00:32]} dxc4 {[%emt 0:00:49]} 8. Bxc4 {[%emt 0:00:05]} O-O {[%emt 0:00:06]} 9. O-O {[%emt 0:00:05]} e6 {[%emt 0:02:01]} 10. Rd1 {[%emt 0:12:13]} Nc6 {[%emt 0:03:36] The position is equal.} 11. Bg5 {[%emt 0:09:43]} Na5 {[%emt 0:03:17]} 12. Qb4 {[%emt 0:00:36]} Nxc4 {[%emt 0:01:26]} 13. Qxc4 {[%emt 0:00:03]} Qb6 {[%emt 0:01:09]} 14. Ne5 {[%emt 0:10:08]} Nd5 {[%emt 0:06:46] [#] aiming for ...f6.} 15. Bd2 {[%emt 0:10:51]} (15. Nxd5 $2 {loses.} exd5 16. Qxd5 Be6 $19) 15... Rd8 {[%emt 0:06:48]} 16. Rac1 {[%emt 0:12:42]} (16. a4 {seems wilder.} Qxb2 17. a5 b5 18. Nxb5 Ba6 19. Rab1) 16... Bd7 {[%emt 0:06:39]} 17. Nxd5 {[%emt 0:01:13]} exd5 {[%emt 0:00:08]} 18. Qc7 {[%emt 0:02:04]} Be6 {[%emt 0:04:09]} 19. Qxb6 {[%emt 0:00:42]} axb6 {[%emt 0:00:06]} 20. a3 {[%emt 0:00:26]} Rdc8 {[%emt 0:00:11]} 21. f3 {[%emt 0:03:08]} Bf5 {[%emt 0:02:22]} 22. g4 {[%emt 0:00:36]} f6 {[%emt 0:02:01]} 23. gxf5 {[%emt 0:00:50]} fxe5 {[%emt 0:00:05]} 24. Rxc8+ {[%emt 0:03:29]} Rxc8 {[%emt 0:00:05]} 25. Bc3 {[%emt 0:01:14]} exd4 {[%emt 0:01:32]} 26. Bxd4 {[%emt 0:00:04]} gxf5 {[%emt 0:01:09] Weighted Error Value: White=0.02 (flawless) /Black=0.07 (flawless) .  Inaccurate:     	---       	Black=2      OK:         	White=10    	Black=8      Best:        	White=2     	---} 1/2-1/2

[Event "7th Sharjah Challengers 2024"]
[Site "Sharjah"]
[Date "2024.05.16"]
[Round "3.5"]
[White "Kanyamarala, Trisha"]
[Black "Viani Antonio Dcunha"]
[Result "0-1"]
[ECO "D90"]
[WhiteElo "2264"]
[BlackElo "2394"]
[Annotator "TA"]
[PlyCount "81"]
[EventDate "2024.05.13"]
[EventType "swiss"]
[EventCountry "UAE"]
[SourceTitle "playchess.com"]
[Source "ChessBase"]
[SourceQuality "1"]
[TimeControl "5400+30"]

{[%evp 14,81,3,5,11,-4,0,-18,-10,-20,-17,-40,-50,-58,-41,-54,-29,-37,-47,-87,-94,-112,-128,-128,-103,-141,-144,-138,-99,-116,0,-128,-109,-106,-98,-112,-110,-109,-74,-74,-52,-84,-67,-100,16,-113,-111,-86,-123,-118,-65,-70,-70,-193,-210,-292,-281,-274,-165,-241,-245,-212,-205,-314,-252,-350,-332,-626,-594,-540]} 1. d4 {[%emt 0:00:09]} Nf6 {[%emt 0:00:25]} 2. c4 {[%emt 0:00:10]} g6 {[%emt 0:00:10]} 3. Nc3 {[%emt 0:00:10]} d5 {[%emt 0:00:18]} 4. cxd5 {[%emt 0:00:12]} Nxd5 {[%emt 0:00:09]} 5. Bd2 {[%emt 0:02:22]} Bg7 {[%emt 0:00:24]} 6. e4 {[%emt 0:00:57]} Nb6 {[%emt 0:00:18]} 7. Be3 {[%emt 0:01:26]} O-O {[%emt 0:04:52]} 8. Nf3 {[%emt 0:05:12]} Bg4 {[%emt 0:00:59]} 9. a4 {[%emt 0:15:21]} a5 {[%emt 0:06:56]} 10. d5 {[%emt 0:11:48] Repels Nc6} Na6 {[%emt 0:23:52] The position is equal.} 11. Bb5 {[%emt 0:07:34]} e6 {[%emt 0:06:01]} 12. dxe6 {[%emt 0:12:34]} Bxe6 {[%emt 0:07:29]} 13. Nd2 {[%emt 0:16:18] Inhibits Nc4.} Nb4 {[%emt 0:05:04]} 14. O-O {[%emt 0:05:22]} c6 {[%emt 0:03:36]} 15. Be2 {[%emt 0:00:26]} Re8 {[%emt 0:01:59]} 16. Rc1 {[%emt 0:01:47]} Bd4 {[%emt 0:04:35]} 17. Bf4 {[%emt 0:01:10]} Qf6 $36 {[%emt 0:06:23][%mdl 2048] Black is really pushing.} 18. Bc7 {[%emt 0:00:52]} Qe7 {[%emt 0:00:29] Prevents e5} 19. Bf4 {[%emt 0:04:44]} Rad8 {[%emt 0:02:46]} 20. Qe1 {[%emt 0:01:28]} Bg7 {[%emt 0:05:46] Black is much more active.} 21. Be3 {[%emt 0:00:49]} Bd4 {[%emt 0:00:24]} 22. Bf4 {[%emt 0:00:53]} Rd7 {[%emt 0:04:55]} 23. Nf3 {[%emt 0:01:45][%cal Bd2f3,Bf3d4,Bd4e6,Be6g7,Bg7f5][%mdl 32]} Bg7 {[%emt 0:00:16]} 24. Bg5 {[%emt 0:06:59]} f6 {[%emt 0:01:23]} 25. Bf4 {[%emt 0:01:11]} g5 {[%emt 0:00:49]} 26. Be3 {[%emt 0:00:41]} Nc4 {[%emt 0:00:43]} 27. Nd4 {[%emt 0:00:45]} Nxb2 {[%emt 0:00:59] ...N4d3 would now be deadly.} 28. Nxe6 {[%emt 0:00:48]} N2d3 {[%emt 0:02:25] Prevents Nc5.} (28... N4d3 $17 29. Nxg7 (29. Bxd3 Nxd3 30. Nxg7 Nxe1 $11) 29... Nxe1) 29. Bxd3 {[%emt 0:00:27]} (29. Nxg7 $1 $11 {was the only way to keep the balance.} Nxe1 30. Nf5 (30. Nxe8 $2 {is the wrong capture.} Ned3 $19)) 29... Nxd3 $17 {[%emt 0:00:06]} 30. Nxg7 {[%emt 0:00:34]} Nxe1 {[%emt 0:01:28]} 31. Nf5 {[%emt 0:00:03]} Qb4 {[%emt 0:00:48]} 32. Rfxe1 {[%emt 0:00:19]} Rd3 {[%emt 0:00:18]} 33. Ne2 {[%emt 0:01:09] Now White is beyond hope.} (33. Ng3 $1 $15) 33... Rxe4 $19 {[%emt 0:00:25][%cal Oe4e5]} 34. Neg3 {[%emt 0:00:31] [#]} Re5 {[%emt 0:00:14]} 35. Rb1 {[%emt 0:00:27]} Rb3 {[%emt 0:02:44]} 36. Rbd1 {[%emt 0:00:07]} (36. Ra1 $142) 36... h5 {[%emt 0:01:55] Threatens to win with ...h4.} 37. Rd8+ {[%emt 0:00:27]} Kf7 {[%emt 0:00:23]} 38. Rd7+ {[%emt 0:00:24] [#]} (38. Red1 $142 Rd5 39. R1xd5 Qe1+ (39... cxd5 40. h4 $17) 40. Nf1 cxd5 41. Bc5) 38... Ke8 $1 {[%emt 0:00:42]} 39. Red1 {[%emt 0:00:56] Rd8+ is the strong threat.} Rd5 $1 {[%emt 0:00:11]} 40. Rd6 {[%emt 0:01:13]} (40. R7xd5 cxd5 41. h4) 40... Rxd1+ 41. Rxd1 {[%emt 0:00:00] Weighted Error Value: White=0.48/Black=0.18 (very precise) .  Mistake:       	White=5     	Black=1      Inaccurate:     	White=5     	Black=2      OK:         	White=10    	Black=11     Best:        	White=3     	Black=5      Strong:       	---       	Black=2} 0-1

[Event "7th Sharjah Challengers 2024"]
[Site "Sharjah"]
[Date "2024.05.16"]
[Round "3.6"]
[White "Devnani Kush"]
[Black "Sammed Jaykumar, Shete"]
[Result "0-1"]
[ECO "E93"]
[WhiteElo "2250"]
[BlackElo "2383"]
[Annotator "TA"]
[PlyCount "74"]
[EventDate "2024.05.13"]
[EventType "swiss"]
[EventCountry "UAE"]
[SourceTitle "playchess.com"]
[Source "ChessBase"]
[SourceQuality "1"]
[TimeControl "5400+30"]

{[%evp 14,74,39,40,61,52,56,15,106,70,98,92,124,82,117,96,134,137,109,44,50,53,36,-21,-18,-22,0,0,0,-381,-52,-43,-45,-59,-37,-141,-124,-207,-219,-216,-223,-194,-195,-285,-136,-280,-280,-250,-252,-254,-272,-362,-362,-327,-233,-678,-670,-1091,-1085,-2529,-2421,-1824,251]} 1. d4 {[%emt 0:00:17]} Nf6 {[%emt 0:00:08]} 2. c4 {[%emt 0:00:06]} g6 {[%emt 0:00:19]} 3. Nc3 {[%emt 0:00:19]} Bg7 {[%emt 0:00:09]} 4. e4 {[%emt 0:00:11]} d6 {[%emt 0:00:08]} 5. Nf3 {[%emt 0:00:10]} O-O {[%emt 0:00:10]} 6. Be2 {[%emt 0:00:05]} Nbd7 {[%emt 0:00:33]} 7. Be3 {[%emt 0:02:01]} e5 {[%emt 0:00:33]} 8. d5 {[%emt 0:05:27]} Qe7 {[%emt 0:01:14]} 9. Nd2 {[%emt 0:01:37]} a5 {[%emt 0:05:08]} 10. g4 {[%emt 0:13:37][%cal Bg2g4,Bg4g5][%mdl 32]} Nc5 {[%emt 0:03:25]} (10... Nxg4 $1 $11 11. Bxg4 f5) 11. Rg1 {[%emt 0:02:54]} Kh8 {[%emt 0:02:28]} 12. Qc2 {[%emt 0:19:37]} Ng8 {[%emt 0:03:05]} 13. g5 {[%emt 0:06:03]} b6 {[%emt 0:02:59]} 14. h4 {[%emt 0:01:02]} f5 {[%emt 0:03:17][%cal Bf7f5,Bf5f4,Bf4f3][%mdl 32]} 15. h5 {[%emt 0:09:01]} gxh5 {[%emt 0:04:02]} 16. Rh1 {[%emt 0:07:04]} (16. Bxh5 $16 {Rh1 would now be deadly.} Na6 17. f3) 16... f4 $14 {[%emt 0:03:23]} 17. Bxc5 {[%emt 0:00:07]} bxc5 {[%emt 0:00:13]} 18. Rxh5 {[%emt 0:00:28] [#]} (18. Nf3 $14) 18... f3 $1 $11 {[%emt 0:02:43] White must now prevent ...Bg4.} 19. Bf1 {[%emt 0:08:33]} (19. Bxf3 $2 Rxf3 20. Nxf3 Bg4 $19) (19. Nxf3 $2 Bg4 20. Rh2 Bxf3 $19) (19. Bd3 Bg4) 19... Bg4 {[%emt 0:01:07]} 20. Rh1 {[%emt 0:00:30]} Qxg5 {[%emt 0:00:13]} 21. Nb5 $2 {[%emt 0:00:24][%mdl 8192]} (21. O-O-O $1 $11) 21... Rf7 $2 {[%emt 1:05:43]} ({Better is} 21... Qe3+ $1 $19 22. Kd1 Qxf2) 22. O-O-O $15 {[%emt 0:00:13]} Bh6 $36 {[%emt 0:00:00][%mdl 2048] Black is more active.} 23. Kb1 {[%emt 0:01:10]} Nf6 {[%emt 0:00:00]} 24. Bh3 {[%emt 0:05:52] [#]} (24. Ka1 $15) 24... Qg6 $1 $17 {[%emt 0:00:00] Black is more active.} 25. Nc3 {[%emt 0:07:53]} (25. Bxg4 $17 Nxg4 26. Nf1) 25... Bxd2 $19 {[%emt 0:00:00]} 26. Bxg4 {[%emt 0:01:46]} Qxg4 {[%emt 0:00:00]} (26... Bxc3 27. Bf5 Qg2 28. Qxc3) 27. Rxd2 {[%emt 0:00:04]} Rg8 {[%emt 0:00:00]} 28. Re1 {[%emt 0:00:11]} (28. Rdd1 $142) 28... Qh4 {[%emt 0:00:00]} (28... h5 $19 {has better winning chances.} 29. Rh1 h4) 29. Nd1 {[%emt 0:02:30] This move loses the game for White.} (29. Rd3 $17 {was necessary.}) 29... Rfg7 {[%emt 0:00:00]} 30. Rd3 {[%emt 0:03:13] [#]} Rg1 $1 {[%emt 0:00:00]} ({Don't do} 30... Nxe4 31. Rxf3 Nf6 32. b3) 31. Rde3 {[%emt 0:00:12]} R8g4 {[%emt 0:00:00]} 32. Qc3 {[%emt 0:02:12]} Rxe1 {[%emt 0:00:00]} (32... Nxe4 33. Rxe4 (33. Qxa5 $2 Nxf2 34. Rxf3 Nxd1 $19) 33... Rxe4 34. Rxg1 Rxc4 35. Qxf3 $14) 33. Rxe1 {[%emt 0:00:11]} Nxe4 {[%emt 0:00:00]} 34. Qxa5 {[%emt 0:01:56]} (34. Qc2) 34... Nxf2 {[%emt 0:00:00] Black is clearly winning.} 35. Ne3 {[%emt 0:00:18]} Rg8 {[%emt 0:00:00] aiming for ...Nd3.} 36. Qxc7 {[%emt 0:00:38]} Ng4 {[%emt 0:00:00]} 37. Nc2 {[%emt 0:00:26] [#]} Qxe1+ $3 {[%emt 0:00:00][%mdl 33280] Weighted Error Value: White=0.94/Black=0.26 (precise) .  Loses game:     	White=1     	---        Missed win:     	---       	Black=1      Mistake:       	White=7     	Black=2      Inaccurate:     	White=5     	Black=4      OK:         	White=10    	Black=10     Best:        	---       	Black=2      Strong:       	---       	Black=1      Brilliant:      	---       	Black=1     . Loss on time!?} 0-1